bitfinex-derivatives/quotes_SOLF0:USTF0_20240910
["timestamp","ask_amount","ask_price","bid_price","bid_amount"]
[1725971555150,12.8187,134.82,134.75,5.06427684]
[1725971555355,9.11,134.82,134.75,5.06427684]
[1725971555554,9.11,134.82,134.78,3.7095]
[1725971555857,3.7087,134.81,134.76,9.11]
[1725971556058,3.7087,134.81,134.77,3.7096]
[1725971558356,3.7086,134.82,134.78,3.7093]
[1725971558761,9.11,134.83,134.78,3.7093]
[1725971560066,3.7087,134.81,134.78,3.7093]
[1725971560560,9.11,134.83,134.78,3.7093]
[1725971560760,3.7085,134.82,134.78,3.7093]
[1725971561764,12.8188,134.81,134.77,3.7096]
[1725971565470,9.11,134.8,134.76,3.71]
[1725971565769,9.11,134.79,134.76,3.71]
[1725971566461,9.11,134.79,134.73,1.3082]
[1725971566664,9.11,134.76,134.69,2.7747]
[1725971566969,9.11,134.75,134.69,11.8847]
[1725971567358,9.11,134.75,134.72,3.711]
[1725971567560,9.11,134.75,134.69,11.8847]
[1725971567955,12.8205,134.75,134.69,11.8847]
[1725971568662,9.11,134.75,134.72,3.7111]
[1725971570570,2.7284,134.79,134.72,9.11]
[1725971570770,9.11,134.78,134.72,9.11]
[1725971570972,12.8197,134.78,134.74,3.7104]
[1725971571972,9.11,134.78,134.75,3.7102]
[1725971572271,9.11,134.78,134.72,9.11]
[1725971572975,9.11,134.78,134.75,3.7102]
[1725971573975,12.8196,134.78,134.75,3.7102]
[1725971574475,9.11,134.78,134.75,3.7102]
[1725971575073,9.11,134.78,134.72,9.11]
[1725971575573,9.11,134.78,134.75,3.7102]
[1725971576071,9.11,134.78,134.74,9.11]
[1725971576476,9.11,134.78,134.75,3.7103]
[1725971576773,12.8192,134.8,134.74,9.11]
[1725971576971,9.11,134.8,134.75,9.11]
[1725971577667,125.7452295,134.81,134.75,9.11]
[1725971578566,9.11,134.8,134.7,7.4231]
[1725971578769,9.11,134.8,134.74,9.11]
[1725971578971,12.8191,134.8,134.76,3.7098]
[1725971580277,1.3604,134.83,134.74,9.11]
[1725971580474,9.11,134.8,134.74,9.11]
[1725971580772,12.8194,134.79,134.75,3.7102]
[1725971581072,9.11,134.77,134.69,2.7747]
[1725971581273,9.11,134.77,134.74,3.7104]
[1725971581469,9.11,134.77,134.69,2.6842]
[1725971581772,9.11,134.76,134.7,9.11]
[1725971581971,9.11,134.76,134.73,3.7108]
[1725971587277,9.11,134.76,134.7,9.11]
[1725971587870,9.11,134.76,134.74,3.7106]
[1725971588469,9.11,134.77,134.75,3.7103]
[1725971588874,9.11,134.78,134.73,9.11]
[1725971589580,9.11,134.78,134.76,3.7099]
[1725971593880,12.8196,134.78,134.75,3.7101]
[1725971594289,9.11,134.77,134.75,3.7101]
[1725971595785,12.8198,134.77,134.74,3.7105]
[1725971596380,9.11,134.76,134.7,1.4075]
[1725971596580,12.8201,134.76,134.73,3.7107]
[1725971603995,12.8204,134.75,134.7,1.4075]
[1725971604184,9.11,134.72,134.69,1.3822]
[1725971604599,9.11,134.72,134.7,3.7116]
[1725971605193,3.7105,134.75,134.71,3.7112]
[1725971605398,12.8205,134.75,134.71,3.7112]
[1725971606002,5.0945,134.77,134.7,9.11]
[1725971606203,9.11,134.76,134.7,9.11]
[1725971606702,9.11,134.76,134.74,3.7106]
[1725971607199,9.11,134.76,134.73,3.7108]
[1725971607396,9.11,134.76,134.7,9.11]
[1725971608305,1.3938,134.78,134.72,9.11]
[1725971608500,1.3938,134.78,134.73,9.11]
[1725971609100,9.11,134.79,134.73,9.11]
[1725971609701,12.8193,134.79,134.75,3.7101]
[1725971609905,9.11,134.8,134.73,9.11]
[1725971610304,3.7093,134.79,134.75,3.7101]
[1725971610697,3.7093,134.79,134.73,9.11]
[1725971611208,9.11,134.78,134.73,9.11]
[1725971611905,9.11,134.78,134.75,3.7103]
[1725971612104,9.11,134.78,134.73,9.11]
[1725971612603,9.11,134.78,134.74,3.7104]
[1725971612803,12.8196,134.78,134.74,3.7104]
[1725971613905,9.11,134.77,134.74,3.7104]
[1725971614500,9.11,134.77,134.72,9.11]
[1725971614807,9.11,134.76,134.73,3.7107]
[1725971619207,12.8201,134.76,134.72,3.7111]
[1725971619512,9.11,134.74,134.68,10.4984]
[1725971621113,9.11,134.74,134.71,3.7113]
[1725971621414,1.3344,134.81,134.68,10.4984]
[1725971621606,1.3344,134.81,134.69,9.11]
[1725971621809,9.11,134.75,134.69,9.11]
[1725971622311,9.11,134.75,134.73,3.7109]
[1725971624110,9.11,134.75,134.72,3.711]
[1725971624513,9.11,134.75,134.69,9.11]
[1725971625314,9.11,134.75,134.73,3.7107]
[1725971625716,9.11,134.76,134.71,9.11]
[1725971626213,9.11,134.78,134.72,9.11]
[1725971627107,9.11,134.78,134.76,3.71]
[1725971627308,9.11,134.79,134.76,3.71]
[1725971627508,9.11,134.8,134.73,9.11]
[1725971627819,12.819,134.8,134.76,3.7098]
[1725971629817,12.819,134.8,134.77,3.7098]
[1725971634625,12.819,134.8,134.78,3.7095]
[1725971634820,9.11,134.8,134.74,9.11]
[1725971636423,9.11,134.8,134.77,3.7096]
[1725971636728,12.819,134.8,134.77,3.7096]
[1725971637329,9.11,134.79,134.77,3.7096]
[1725971639532,12.8192,134.79,134.77,3.7096]
[1725971639831,9.11,134.79,134.77,3.7096]
[1725971642431,9.11,134.78,134.76,3.7099]
[1725971642735,9.11,134.78,134.71,10.5083]
[1725971642933,9.11,134.76,134.75,3.7103]
[1725971643139,9.11,134.77,134.75,3.7103]
[1725971644138,12.8198,134.77,134.74,3.7105]
[1725971644340,9.11,134.77,134.71,10.5083]
[1725971644633,9.11,134.76,134.71,10.5083]
[1725971644938,9.11,134.76,134.74,3.7105]
[1725971645545,3.7097,134.78,134.74,3.7105]
[1725971645732,9.11,134.77,134.74,3.7105]
[1725971648134,3.7093,134.79,134.75,3.7102]
[1725971648341,9.11,134.78,134.75,3.7102]
[1725971648938,9.11,134.78,134.71,10.5083]
[1725971648939,9.11,134.78,134.76,3.71]
[1725971649240,9.11,134.78,134.72,9.11]
[1725971649739,9.11,134.78,134.75,3.7102]
[1725971650841,3.7093,134.79,134.76,3.71]
[1725971651042,9.11,134.78,134.76,3.71]
[1725971653538,3.7093,134.79,134.76,3.71]
[1725971653739,12.8193,134.79,134.76,3.71]
[1725971653933,12.82,134.77,134.71,1.3983]
[1725971654138,9.11,134.77,134.71,10.5083]
[1725971654338,9.11,134.77,134.74,3.7104]
[1725971654540,9.11,134.77,134.71,10.5083]
[1725971655943,9.11,134.76,134.71,1.3983]
[1725971656443,12.8202,134.76,134.71,1.3983]
[1725971656844,9.11,134.76,134.71,1.3983]
[1725971658043,9.11,134.76,134.74,3.7105]
[1725971658243,1.3344,134.81,134.72,9.11]
[1725971658436,1.3344,134.81,134.73,9.11]
[1725971658636,9.11,134.79,134.73,9.11]
[1725971659334,12.8194,134.79,134.75,3.7101]
[1725971664248,12.8194,134.79,134.76,3.71]
[1725971668550,12.8199,134.77,134.74,3.7106]
[1725971668750,9.11,134.77,134.71,1.3983]
[1725971669060,9.11,134.75,134.72,3.711]
[1725971669354,9.11,134.75,134.71,1.3983]
[1725971669948,9.11,134.75,134.72,3.7109]
[1725971670348,9.11,134.76,134.7,9.11]
[1725971670951,12.8202,134.76,134.73,3.7108]
[1725971671849,9.11,134.74,134.7,9.11]
[1725971672045,9.11,134.74,134.69,1.3156]
[1725971672446,9.11,134.74,134.71,3.7113]
[1725971673363,9.11,134.73,134.71,3.7113]
[1725971673559,9.11,134.73,134.7,3.7117]
[1725971675156,9.11,134.73,134.71,3.7114]
[1725971675857,9.11,134.72,134.65,1.3194]
[1725971676064,9.11,134.72,134.66,9.11]
[1725971676359,1.3917,134.76,134.65,1.3194]
[1725971676360,9.11,134.71,134.65,1.3194]
[1725971676559,9.11,134.71,134.68,3.7121]
[1725971676747,9.11,134.71,134.65,10.4294]
[1725971677356,9.11,134.71,134.69,3.712]
[1725971677551,9.11,134.71,134.65,10.4294]
[1725971678259,9.11,134.71,134.68,3.7121]
[1725971679150,9.11,134.71,134.69,3.712]
[1725971679353,9.11,134.71,134.65,10.4294]
[1725971679656,9.11,134.71,134.69,3.712]
[1725971680057,9.11,134.71,134.65,1.3194]
[1725971680260,9.11,134.69,134.66,3.7126]
[1725971680654,9.11,134.68,134.66,3.7126]
[1725971681056,9.11,134.68,134.64,3.7132]
[1725971681270,12.8224,134.68,134.64,3.7132]
[1725971681463,9.11,134.68,134.61,13.0832]
[1725971682262,9.11,134.68,134.63,9.11]
[1725971683863,9.11,134.68,134.65,3.7128]
[1725971685269,9.11,134.68,134.66,3.7128]
[1725971686267,9.11,134.67,134.61,3.9732]
[1725971686465,9.11,134.67,134.61,13.0832]
[1725971686660,9.11,134.68,134.62,9.11]
[1725971687472,9.11,134.68,134.65,3.7129]
[1725971687665,9.11,134.68,134.62,9.11]
[1725971688662,9.11,134.68,134.66,3.7127]
[1725971689367,9.11,134.68,134.67,3.7125]
[1725971691866,1.2998,134.7,134.62,9.11]
[1725971692065,1.2998,134.7,134.61,3.9732]
[1725971692066,9.11,134.68,134.63,9.11]
[1725971692476,9.11,134.68,134.67,3.7125]
[1725971693971,3.7108,134.74,134.66,9.11]
[1725971694172,9.11,134.72,134.66,9.11]
[1725971694470,9.11,134.72,134.7,3.7116]
[1725971696973,3.7108,134.74,134.7,3.7116]
[1725971697175,1.3888,134.75,134.72,3.7111]
[1725971697380,9.11,134.73,134.72,3.7111]
[1725971697778,9.11,134.73,134.61,3.9989]
[1725971697972,9.11,134.66,134.61,3.9989]
[1725971698176,9.11,134.66,134.64,3.7131]
[1725971699381,9.11,134.66,134.63,3.7135]
[1725971700784,9.11,134.66,134.62,3.7138]
[1725971703889,1.3682,134.7,134.61,13.1089]
[1725971704087,9.11,134.67,134.61,13.1089]
[1725971705588,9.11,134.67,134.63,3.7135]
[1725971706175,1.3682,134.7,134.63,9.11]
[1725971706396,9.11,134.7,134.64,9.11]
[1725971706893,12.8219,134.7,134.66,3.7126]
[1725971707087,9.11,134.71,134.65,9.11]
[1725971707389,9.11,134.71,134.67,3.7124]
[1725971707578,1.2808,134.76,134.65,9.11]
[1725971707784,1.2808,134.76,134.68,9.11]
[1725971707983,9.11,134.74,134.68,9.11]
[1725971708378,9.11,134.74,134.69,9.11]
[1725971708991,9.11,134.74,134.7,3.7116]
[1725971709386,9.11,134.74,134.71,3.7114]
[1725971709792,9.11,134.75,134.71,3.7114]
[1725971710392,1.3143,134.79,134.7,9.11]
[1725971710692,9.11,134.78,134.72,9.11]
[1725971711292,12.8197,134.78,134.73,3.7108]
[1725971711493,9.11,134.78,134.72,9.11]
[1725971711790,9.11,134.78,134.74,3.7104]
[1725971712187,9.11,134.77,134.68,4.0293]
[1725971712388,9.11,134.77,134.73,3.7107]
[1725971712688,9.11,134.78,134.72,9.11]
[1725971712897,9.11,134.78,134.74,3.7104]
[1725971713191,9.11,134.78,134.72,9.11]
[1725971713494,9.11,134.78,134.74,3.7104]
[1725971714190,9.11,134.78,134.75,3.7103]
[1725971716099,12.8196,134.78,134.75,3.7103]
[1725971717490,9.11,134.78,134.76,3.71]
[1725971718500,12.8196,134.78,134.75,3.7102]
[1725971718991,9.11,134.77,134.68,4.0293]
[1725971719301,9.11,134.76,134.73,3.7108]
[1725971720099,3.7103,134.75,134.72,3.711]
[1725971720399,9.11,134.76,134.69,9.11]
[1725971720589,12.8201,134.76,134.72,3.7109]
[1725971720999,9.11,134.76,134.72,3.7109]
[1725971721194,12.8201,134.76,134.72,3.7109]
[1725971721700,12.82,134.77,134.71,9.11]
[1725971721997,9.11,134.78,134.72,9.11]
[1725971722399,12.8196,134.78,134.75,3.7103]
[1725971722600,12.8196,134.78,134.72,9.11]
[1725971722796,9.11,134.78,134.72,9.11]
[1725971724104,3.7098,134.77,134.74,3.7105]
[1725971727803,12.8198,134.77,134.74,3.7105]
[1725971735214,3.7102,134.76,134.74,3.7105]
[1725971735511,3.7102,134.76,134.73,3.7108]
[1725971735708,3.7103,134.75,134.73,3.7108]
[1725971735917,3.7103,134.75,134.7,9.11]
[1725971736118,3.7103,134.75,134.71,3.7113]
[1725971736323,3.7103,134.75,134.7,9.11]
[1725971736715,3.7103,134.75,134.71,3.7113]
[1725971737314,3.7103,134.75,134.72,3.7111]
[1725971738618,9.11,134.76,134.7,9.11]
[1725971738619,3.7108,134.74,134.71,3.7114]
[1725971738823,3.7108,134.74,134.69,9.11]
[1725971739215,3.7108,134.74,134.7,3.7115]
[1725971739722,3.7108,134.74,134.71,3.7114]
[1725971740120,9.11,134.76,134.71,3.7114]
[1725971740121,3.7104,134.75,134.71,3.7114]
[1725971740723,3.7104,134.75,134.72,3.7111]
[1725971740915,12.8202,134.76,134.72,3.7111]
[1725971741119,9.11,134.77,134.72,9.11]
[1725971741512,12.8199,134.77,134.73,3.7107]
[1725971741925,120.37462815,134.8,134.73,9.11]
[1725971742223,3.7097,134.78,134.73,9.11]
[1725971742424,9.11,134.79,134.73,9.11]
[1725971742725,3.7096,134.78,134.73,9.11]
[1725971743824,3.7096,134.78,134.74,3.7104]
[1725971744222,3.7098,134.77,134.74,3.7104]
[1725971745321,3.7096,134.78,134.73,9.11]
[1725971748217,3.7096,134.78,134.75,3.7103]
[1725971752423,3.7096,134.78,134.76,3.7101]
[1725971754825,12.8194,134.79,134.76,3.7101]
[1725971755132,3.7094,134.79,134.76,3.7101]
[1725971755320,12.8194,134.79,134.76,3.7101]
[1725971755828,3.7095,134.78,134.76,3.7101]
[1725971761627,12.8194,134.79,134.73,9.11]
[1725971761831,12.8194,134.79,134.74,9.11]
[1725971762129,116.63901541,134.8,134.74,9.11]
[1725971762728,120.34811541,134.8,134.74,9.11]
[1725971763625,116.63901541,134.8,134.75,9.11]
[1725971763829,116.63901541,134.8,134.75,10.4348]
[1725971764125,3.7093,134.79,134.75,10.4348]
[1725971764323,125.74901541,134.8,134.75,1.3248]
[1725971764525,9.11,134.79,134.75,3.7102]
[1725971765131,3.7097,134.78,134.75,3.7102]
[1725971765433,120.32322593,134.8,134.74,3.7104]
[1725971765733,9.11,134.77,134.74,3.7104]
[1725971767134,12.8199,134.77,134.74,3.7104]
[1725971767334,12.8199,134.77,134.71,9.11]
[1725971767641,3.7097,134.78,134.75,3.7103]
[1725971769738,3.7097,134.78,134.76,3.71]
[1725971770141,12.8194,134.79,134.76,3.71]
[1725971770338,1.4039,134.82,134.79,3.7091]
[1725971770641,5.1125,134.82,134.76,9.11]
[1725971770850,1.4039,134.82,134.8,3.709]
[1725971771343,3.7083,134.83,134.8,3.709]
[1725971771531,12.8183,134.83,134.8,3.709]
[1725971772834,12.8185,134.82,134.79,3.7091]
[1725971773036,9.11,134.81,134.75,13.1106]
[1725971773238,9.11,134.79,134.75,4.0006]
[1725971773547,9.11,134.79,134.75,1.3448]
[1725971774343,12.8194,134.79,134.76,3.71]
[1725971774534,9.11,134.79,134.75,1.3448]
[1725971774935,9.11,134.79,134.76,3.71]
[1725971775738,9.11,134.79,134.77,3.7097]
[1725971778538,12.8194,134.79,134.76,3.7099]
[1725971778943,9.11,134.78,134.76,3.7099]
[1725971779139,9.11,134.78,134.72,9.11]
[1725971779344,9.11,134.78,134.75,3.7102]
[1725971779637,12.8195,134.78,134.75,3.7102]
[1725971781344,9.11,134.78,134.72,9.11]
[1725971781950,12.8197,134.78,134.75,3.7102]
[1725971782550,9.11,134.78,134.72,9.11]
[1725971783845,9.11,134.78,134.69,1.3893]
[1725971784049,9.11,134.77,134.69,1.3893]
[1725971784252,9.11,134.77,134.71,9.11]
[1725971784846,12.8198,134.77,134.71,9.11]
[1725971785648,12.8198,134.77,134.74,3.7105]
[1725971793254,12.8201,134.76,134.73,3.7108]
[1725971796859,9.11,134.76,134.69,1.3893]
[1725971797060,9.11,134.76,134.69,10.4993]
[1725971797263,3.7106,134.75,134.71,3.7113]
[1725971798256,3.7106,134.75,134.72,3.7111]
[1725971801765,3.7104,134.75,134.72,3.7111]
[1725971802361,3.7106,134.74,134.72,3.7111]
[1725971803668,3.7105,134.75,134.72,3.7111]
[1725971804367,3.7105,134.75,134.73,3.7109]
[1725971805661,12.8202,134.76,134.73,3.7109]
[1725971806164,3.7103,134.75,134.73,3.7109]
[1725971810970,9.11,134.74,134.69,1.3893]
[1725971811170,9.11,134.72,134.69,1.3893]
[1725971811567,12.8212,134.72,134.69,5.1012]
[1725971813274,9.11,134.72,134.7,3.7116]
[1725971813775,9.11,134.73,134.69,1.3893]
[1725971814469,9.11,134.73,134.71,3.7112]
[1725971814674,9.11,134.73,134.69,1.3893]
[1725971814875,9.11,134.75,134.69,10.4993]
[1725971815076,12.8205,134.75,134.72,3.711]
[1725971820384,12.8205,134.75,134.73,3.7109]
[1725971821082,12.8205,134.75,134.72,3.711]
[1725971821286,12.8207,134.74,134.69,1.3893]
[1725971821479,9.11,134.74,134.69,1.3893]
[1725971821880,12.8207,134.74,134.69,1.3893]
[1725971822289,12.8207,134.74,134.71,3.7113]
[1725971824396,3.7105,134.75,134.72,3.7111]
[1725971824696,9.11,134.74,134.72,3.7111]
[1725971826095,12.8206,134.74,134.72,3.7111]
[1725971827794,9.11,134.74,134.72,3.7111]
[1725971827988,9.11,134.77,134.71,9.11]
[1725971828999,3.7101,134.76,134.73,3.7107]
[1725971829598,3.7101,134.76,134.74,3.7106]
[1725971830099,9.11,134.75,134.73,3.7108]
[1725971830891,9.11,134.75,134.7,9.11]
[1725971830892,9.11,134.75,134.74,3.7106]
[1725971831496,12.8199,134.77,134.75,3.7103]
[1725971831800,9.11,134.77,134.71,9.11]
[1725971832100,9.11,134.77,134.75,3.7102]
[1725971837405,9.11,134.77,134.76,3.7101]
[1725971839103,9.11,134.77,134.75,3.7102]
[1725971839298,9.11,134.77,134.69,1.3084]
[1725971839500,9.11,134.75,134.73,3.7106]
[1725971839710,9.11,134.75,134.69,10.4184]
[1725971839908,9.11,134.77,134.71,9.11]
[1725971840109,9.11,134.77,134.76,3.7101]
[1725971840309,9.11,134.78,134.72,9.11]
[1725971840498,1.3895,134.83,134.78,3.7093]
[1725971840699,1.3416,134.86,134.76,12.84709748]
[1725971840700,1.3981,134.85,134.76,12.84709748]
[1725971840903,9.11,134.84,134.78,9.11]
[1725971841207,1.3304,134.88,134.79,9.11]
[1725971841405,9.11,134.86,134.8,9.11]
[1725971841608,12.8175,134.86,134.8,9.11]
[1725971842106,12.8176,134.85,134.79,9.11]
[1725971842503,9.11,134.83,134.8,3.7088]
[1725971843312,9.11,134.83,134.79,3.7091]
[1725971843808,9.11,134.82,134.79,3.7091]
[1725971845404,9.11,134.82,134.8,3.7089]
[1725971845911,9.11,134.82,134.77,11.8643]
[1725971846298,9.11,134.82,134.77,2.7543]
[1725971846510,12.8184,134.82,134.78,3.7093]
[1725971846810,9.11,134.81,134.77,1.4122]
[1725971847211,9.11,134.81,134.78,3.7095]
[1725971847609,9.11,134.81,134.77,1.4122]
[1725971848410,9.11,134.81,134.74,12.89932917]
[1725971848614,1.3304,134.88,134.74,12.89932917]
[1725971848615,9.11,134.8,134.74,9.11]
[1725971848915,9.11,134.78,134.73,2.6545]
[1725971849410,9.11,134.78,134.75,3.7102]
[1725971849609,1.3304,134.88,134.76,9.11]
[1725971849808,9.11,134.82,134.79,3.7091]
[1725971852209,9.11,134.82,134.8,3.7089]
[1725971852616,3.7081,134.84,134.76,9.11]
[1725971852815,9.11,134.82,134.8,3.7087]
[1725971854119,9.11,134.82,134.81,3.7087]
[1725971854421,9.11,134.83,134.81,3.7087]
[1725971854807,9.11,134.83,134.82,3.7084]
[1725971856019,9.11,134.83,134.81,3.7086]
[1725971857714,9.11,134.84,134.74,11.15023754]
[1725971857921,9.11,134.86,134.81,9.11]
[1725971858119,9.11,134.86,134.83,3.7079]
[1725971858320,9.11,134.86,134.81,9.11]
[1725971858720,9.11,134.86,134.84,3.7078]
[1725971858920,9.11,134.86,134.81,9.11]
[1725971859624,12.8173,134.86,134.83,3.708]
[1725971860732,9.11,134.85,134.79,9.11]
[1725971862126,12.8177,134.85,134.82,3.7084]
[1725971863520,9.11,134.85,134.79,10.427]
[1725971863722,9.11,134.85,134.79,11.7028]
[1725971863921,9.11,134.85,134.8,9.11]
[1725971864121,9.11,134.85,134.83,3.708]
[1725971865127,3.7074,134.86,134.83,3.708]
[1725971865926,9.11,134.87,134.8,9.11]
[1725971866627,3.7074,134.86,134.83,3.708]
[1725971867832,12.8177,134.85,134.82,3.7082]
[1725971870732,3.7079,134.84,134.81,3.7085]
[1725971870933,9.11,134.86,134.8,9.11]
[1725971871131,3.7076,134.85,134.82,3.7082]
[1725971873532,3.7076,134.85,134.8,9.11]
[1725971874231,3.7077,134.85,134.8,9.11]
[1725971875133,3.7077,134.85,134.82,3.7083]
[1725971877131,9.11,134.86,134.8,9.11]
[1725971878234,9.11,134.86,134.82,3.7083]
[1725971878736,9.11,134.86,134.81,3.7086]
[1725971879332,3.7079,134.84,134.81,3.7086]
[1725971880636,3.7082,134.83,134.81,3.7086]
[1725971880828,9.11,134.85,134.79,2.5928]
[1725971881030,9.11,134.83,134.79,2.5928]
[1725971881636,12.8183,134.83,134.8,3.7087]
[1725971882340,116.57462074,134.89,134.81,3.7087]
[1725971882341,3.708,134.84,134.81,3.7087]
[1725971888236,3.7077,134.85,134.82,3.7084]
[1725971888637,9.11,134.86,134.81,9.11]
[1725971889244,12.8175,134.86,134.83,3.7081]
[1725971889939,3.7075,134.86,134.83,3.7081]
[1725971890343,3.7076,134.85,134.83,3.7081]
[1725971892747,3.7075,134.86,134.83,3.7081]
[1725971893148,116.57462074,134.89,134.84,3.7078]
[1725971893349,3.7072,134.87,134.82,9.11]
[1725971895157,3.7069,134.88,134.83,9.11]
[1725971895354,9.11,134.89,134.83,9.11]
[1725971896059,12.8168,134.89,134.86,3.7072]
[1725971896254,9.11,134.89,134.86,3.7072]
[1725971896454,1.3981,134.9,134.83,9.11]
[1725971896653,1.3148,134.97,134.86,9.11]
[1725971896852,9.11,134.93,134.86,9.11]
[1725971897060,3.7057,134.92,134.88,3.7065]
[1725971898862,3.706,134.91,134.88,3.7065]
[1725971900561,12.816,134.91,134.88,3.7065]
[1725971900764,3.706,134.91,134.88,3.7065]
[1725971902858,3.7058,134.92,134.86,9.11]
[1725971903059,3.9766,134.97,134.87,9.11]
[1725971903259,9.11,134.95,134.89,9.11]
[1725971903665,9.11,134.94,134.87,9.11]
[1725971904165,9.11,134.94,134.9,3.7062]
[1725971904769,3.7055,134.93,134.9,3.7062]
[1725971905668,3.7057,134.92,134.9,3.7062]
[1725971906057,3.7057,134.92,134.89,3.7064]
[1725971907469,3.7059,134.91,134.89,3.7064]
[1725971907671,9.11,134.94,134.89,3.7064]
[1725971908171,3.7055,134.93,134.9,3.7062]
[1725971908365,3.7055,134.93,134.87,9.11]
[1725971908560,3.7055,134.93,134.9,3.7061]
[1725971909165,3.7055,134.93,134.91,3.7059]
[1725971909371,3.7055,134.93,134.87,9.11]
[1725971909570,3.7055,134.93,134.9,3.7061]
[1725971910166,9.11,134.94,134.89,3.7063]
[1725971910365,9.11,134.92,134.89,3.7063]
[1725971910773,12.8158,134.92,134.89,3.7063]
[1725971911973,9.11,134.95,134.89,9.11]
[1725971912868,3.7052,134.94,134.91,3.7058]
[1725971914375,232.4044,135.05,134.91,9.11]
[1725971914585,9.11,134.97,134.91,9.11]
[1725971915079,3.705,134.95,134.92,3.7055]
[1725971916077,3.705,134.95,134.93,3.7053]
[1725971916282,1.4016,135.0,134.91,9.11]
[1725971916467,9.11,134.98,134.92,9.11]
[1725971916781,3.7046,134.96,134.92,9.11]
[1725971917285,3.7046,134.96,134.93,3.7053]
[1725971917578,3.7049,134.95,134.91,9.11]
[1725971917770,9.11,134.96,134.91,3.7058]
[1725971918165,5.20155551,135.0,134.86,7.79696091]
[1725971918166,9.11,134.92,134.86,7.79696091]
[1725971918376,9.11,134.9,134.86,5.0917]
[1725971918770,12.8164,134.9,134.86,5.0917]
[1725971918969,12.8164,134.9,134.85,12.8175]
[1725971918970,9.11,134.9,134.85,12.8175]
[1725971919168,3.7067,134.89,134.84,9.11]
[1725971919765,3.7067,134.89,134.85,3.7075]
[1725971920467,3.7069,134.88,134.85,3.7075]
[1725971920677,3.7069,134.88,134.84,3.7077]
[1725971920874,9.11,134.87,134.82,1.2826]
[1725971921378,12.8172,134.87,134.83,3.708]
[1725971921579,1.3302,134.89,134.82,10.3926]
[1725971921776,12.8169,134.88,134.84,3.7079]
[1725971922573,14.1468,134.89,134.85,3.7076]
[1725971924473,14.1468,134.89,134.86,3.7073]
[1725971924683,12.8166,134.89,134.86,3.7073]
[1725971924880,3.7062,134.9,134.84,9.11]
[1725971925079,1.3616,134.93,134.85,9.11]
[1725971925280,9.11,134.92,134.85,9.11]
[1725971925484,3.7061,134.91,134.85,9.11]
[1725971926275,3.7064,134.9,134.85,9.11]
[1725971926686,3.7064,134.9,134.86,3.7071]
[1725971926881,3.706,134.91,134.85,9.11]
[1725971927588,3.7063,134.9,134.85,9.11]